Workbook

Sheet sheet
A1: 附件
A2: 金沙县2024年面向社会公开招聘事业单位工作人员面试成绩及总成绩登记表
A3: 序号 | B3: 姓名 | C3: 性别 | D3: 单位名称 | E3: 岗位名称 | F3: 招聘单位及岗位代码 | G3: 笔试成绩 | H3: 面试准考证号 | I3: 面试成绩 | J3: 总成绩 | K3: 备注
A4: 1 | B4: 高谈 | C4: 女 | D4: 金沙县融媒体中心 | E4: 全媒体工作人员 | F4: 000101 | G4: 190.50 | H4: 2406160002 | I4: 82.20 | J4: =(G4/3)*0.6+I4*0.4 -> 70.98
A5: 2 | B5: 裴忠钰 | C5: 男 | D5: 金沙县融媒体中心 | E5: 全媒体工作人员 | F5: 000101 | G5: 195.50 | H5: 2406160001 | I5: 74.80 | J5: 69.02
A6: 3 | B6: 何婷 | C6: 女 | D6: 金沙县融媒体中心 | E6: 全媒体工作人员 | F6: 000101 | G6: 182.50 | H6: 2406160003 | I6: 77.80 | J6: 67.62
A7: 4 | B7: 刘丽 | C7: 女 | D7: 金沙县融媒体中心 | E7: 全媒体工作人员 | F7: 000101 | G7: 182.00 | H7: 2406160004 | I7: 74.60 | J7: 66.24
A8: 5 | B8: 徐万俊 | C8: 男 | D8: 金沙县融媒体中心 | E8: 全媒体工作人员 | F8: 000101 | G8: 180.00 | H8: 2406160006 | I8: 73.60 | J8: 65.44
A9: 6 | B9: 刘豪 | C9: 男 | D9: 金沙县融媒体中心 | E9: 全媒体工作人员 | F9: 000101 | G9: 181.50 | H9: 2406160005 | I9: 67.20 | J9: 63.18
A10: 7 | B10: 蓝蒙 | C10: 男 | D10: 金沙县党员教育服务中心 | E10: 工作人员 | F10: 000201 | G10: 210.00 | H10: 2406160007 | I10: 84.60 | J10: 75.84
A11: 8 | B11: 黄泽彬 | C11: 男 | D11: 金沙县党员教育服务中心 | E11: 工作人员 | F11: 000201 | G11: 208.50 | H11: 2406160008 | I11: 76.40 | J11: 72.26
A12: 9 | B12: 牟逊 | C12: 男 | D12: 金沙县党员教育服务中心 | E12: 工作人员 | F12: 000201 | G12: 200.00 | H12: 2406160009 | I12: 74.60 | J12: 69.84
A13: 10 | B13: 张妮莎 | C13: 女 | D13: 金沙县公务员服务中心 | E13: 财务人员 | F13: 000301 | G13: 215.50 | H13: 2406160010 | I13: 79.80 | J13: 75.02
A14: 11 | B14: 赵朝昱 | C14: 男 | D14: 金沙县公务员服务中心 | E14: 财务人员 | F14: 000301 | G14: 195.00 | H14: 2406160011 | I14: 74.60 | J14: 68.84
A15: 12 | B15: 蔡冲 | C15: 男 | D15: 金沙县公务员服务中心 | E15: 财务人员 | F15: 000301 | G15: 193.00 | H15: 2406160012 | I15: 69.40 | J15: 66.36
A16: 13 | B16: 张晋伟 | C16: 男 | D16: 金沙县考核服务中心 | E16: 工作人员 | F16: 000401 | G16: 209.00 | H16: 2406160013 | I16: 75.60 | J16: 72.04
A17: 14 | B17: 尚磊峰 | C17: 女 | D17: 金沙县考核服务中心 | E17: 工作人员 | F17: 000401 | G17: 192.50 | H17: 2406160014 | I17: 79.60 | J17: 70.34
A18: 15 | B18: 朱青龙 | C18: 男 | D18: 金沙县考核服务中心 | E18: 工作人员 | F18: 000401 | G18: 188.50 | H18: 2406160016 | I18: 73.60 | J18: 67.14
A19: 16 | B19: 张铁龄 | C19: 男 | D19: 金沙县考核服务中心 | E19: 工作人员 | F19: 000401 | G19: 188.50 | H19: 2406160015 | K19: 面试缺考
A20: 17 | B20: 穆云 | C20: 女 | D20: 金沙县新时代文明实践服务中心 | E20: 工作人员 | F20: 000501 | G20: 196.00 | H20: 2406160019 | I20: 83.20 | J20: =(G20/3)*0.6+I20*0.4 -> 72.48
A21: 18 | B21: 梅香 | C21: 女 | D21: 金沙县新时代文明实践服务中心 | E21: 工作人员 | F21: 000501 | G21: 209.00 | H21: 2406160017 | I21: 75.60 | J21: 72.04
A22: 19 | B22: 王伟东 | C22: 男 | D22: 金沙县新时代文明实践服务中心 | E22: 工作人员 | F22: 000501 | G22: 199.50 | H22: 2406160018 | I22: 79.00 | J22: 71.50
A23: 20 | B23: 罗少霞 | C23: 女 | D23: 金沙县利用外资和招商引资项目代办服务中心 | E23: 工作人员 | F23: 000601 | G23: 191.50 | H23: 2406160020 | I23: 80.00 | J23: 70.30
A24: 21 | B24: 王兵 | C24: 男 | D24: 金沙县利用外资和招商引资项目代办服务中心 | E24: 工作人员 | F24: 000601 | G24: 188.00 | H24: 2406160021 | I24: 79.60 | J24: 69.44
A25: 22 | B25: 陈虎 | C25: 男 | D25: 金沙县利用外资和招商引资项目代办服务中心 | E25: 工作人员 | F25: 000601 | G25: 186.00 | H25: 2406160022 | I25: 77.40 | J25: 68.16
A26: 23 | B26: 龙广政 | C26: 男 | D26: 金沙县耕地保护服务中心 | E26: 工作人员 | F26: 000701 | G26: 200.50 | H26: 2406160023 | I26: 77.60 | J26: 71.14
A27: 24 | B27: 夏子俨 | C27: 女 | D27: 金沙县耕地保护服务中心 | E27: 工作人员 | F27: 000701 | G27: 198.00 | H27: 2406160024 | I27: 77.80 | J27: 70.72
A28: 25 | B28: 罗炜杰 | C28: 男 | D28: 金沙县耕地保护服务中心 | E28: 工作人员 | F28: 000701 | G28: 196.00 | H28: 2406160025 | K28: 面试缺考
A29: 26 | B29: 赵露 | C29: 女 | D29: 金沙县耕地保护服务中心 | E29: 财务人员 | F29: 000702 | G29: 191.50 | H29: 2406160026 | I29: 76.00 | J29: =(G29/3)*0.6+I29*0.4 -> 68.70
A30: 27 | B30: 冯婉丽 | C30: 女 | D30: 金沙县耕地保护服务中心 | E30: 财务人员 | F30: 000702 | G30: 187.00 | H30: 2406160027 | I30: 74.80 | J30: =(G30/3)*0.6+I30*0.4 -> 67.32
A31: 28 | B31: 樊花 | C31: 女 | D31: 金沙县耕地保护服务中心 | E31: 财务人员 | F31: 000702 | G31: 183.00 | H31: 2406160028 | I31: 73.60 | J31: =(G31/3)*0.6+I31*0.4 -> 66.04
A32: 29 | B32: 王碧松 | C32: 男 | D32: 金沙县耕地保护服务中心 | E32: 工作人员 | F32: 000703 | G32: 182.00 | H32: 2406160031 | I32: 79.60 | J32: =(G32/3)*0.6+I32*0.4 -> 68.24
A33: 30 | B33: 蒋云坤 | C33: 男 | D33: 金沙县耕地保护服务中心 | E33: 工作人员 | F33: 000703 | G33: 185.00 | H33: 2406160030 | I33: 75.00 | J33: =(G33/3)*0.6+I33*0.4 -> 67.00
A34: 31 | B34: 蒋念念 | C34: 女 | D34: 金沙县耕地保护服务中心 | E34: 工作人员 | F34: 000703 | G34: 195.00 | H34: 2406160029 | K34: 面试缺考
A35: 32 | B35: 詹正建 | C35: 男 | D35: 金沙县沙土镇自然资源所 | E35: 工作人员 | F35: 000801 | G35: 187.50 | H35: 2406160032 | I35: 80.00 | J35: =(G35/3)*0.6+I35*0.4 -> 69.50
A36: 33 | B36: 田时斌 | C36: 男 | D36: 金沙县沙土镇自然资源所 | E36: 工作人员 | F36: 000801 | G36: 171.50 | H36: 2406160033 | I36: 73.80 | J36: 63.82
A37: 34 | B37: 李佳佳 | C37: 女 | D37: 金沙县沙土镇自然资源所 | E37: 工作人员 | F37: 000801 | G37: 152.00 | H37: 2406160034 | I37: 61.20 | J37: 54.88
A38: 35 | B38: 吕吉飞 | C38: 男 | D38: 金沙县鼓场街道自然资源所 | E38: 工作人员 | F38: 000901 | G38: 208.50 | H38: 2406160035 | I38: 76.00 | J38: 72.10
A39: 36 | B39: 李琳 | C39: 女 | D39: 金沙县鼓场街道自然资源所 | E39: 工作人员 | F39: 000901 | G39: 206.00 | H39: 2406160036 | I39: 75.20 | J39: 71.28
A40: 37 | B40: 张静 | C40: 女 | D40: 金沙县鼓场街道自然资源所 | E40: 工作人员 | F40: 000901 | G40: 203.00 | H40: 2406160037 | I40: 71.60 | J40: 69.24
A41: 38 | B41: 周先静 | C41: 女 | D41: 金沙县岩孔街道自然资源所 | E41: 工作人员 | F41: 001001 | G41: 194.50 | H41: 2406160039 | I41: 75.60 | J41: 69.14
A42: 39 | B42: 杨顺意 | C42: 女 | D42: 金沙县岩孔街道自然资源所 | E42: 工作人员 | F42: 001001 | G42: 189.50 | H42: 2406160040 | I42: 76.40 | J42: 68.46
A43: 40 | B43: 肖钰银 | C43: 女 | D43: 金沙县岩孔街道自然资源所 | E43: 工作人员 | F43: 001001 | G43: 198.50 | H43: 2406160038 | K43: 面试缺考
A44: 41 | B44: 向小玲 | C44: 女 | D44: 金沙县水土保持监测中心 | E44: 办公室工作人员 | F44: 001101 | G44: 188.50 | H44: 2406160041 | I44: 79.80 | J44: =(G44/3)*0.6+I44*0.4 -> 69.62
A45: 42 | B45: 李瑞 | C45: 女 | D45: 金沙县水土保持监测中心 | E45: 办公室工作人员 | F45: 001101 | G45: 180.00 | H45: 2406160042 | I45: 77.30 | J45: =(G45/3)*0.6+I45*0.4 -> 66.92
A46: 43 | B46: 李杨 | C46: 女 | D46: 金沙县水土保持监测中心 | E46: 办公室工作人员 | F46: 001101 | G46: 179.00 | H46: 2406160043 | I46: 75.40 | J46: =(G46/3)*0.6+I46*0.4 -> 65.96
A47: 44 | B47: 赵杰 | C47: 男 | D47: 金沙县水利水电工程建设中心 | E47: 工作人员 | F47: 001201 | G47: 197.50 | H47: 2406160045 | I47: 80.00 | J47: =(G47/3)*0.6+I47*0.4 -> 71.50
A48: 45 | B48: 黄宜戌 | C48: 男 | D48: 金沙县水利水电工程建设中心 | E48: 工作人员 | F48: 001201 | G48: 203.00 | H48: 2406160044 | I48: 73.70 | J48: =(G48/3)*0.6+I48*0.4 -> 70.08
A49: 46 | B49: 李智 | C49: 男 | D49: 金沙县水利水电工程建设中心 | E49: 工作人员 | F49: 001201 | G49: 187.50 | H49: 2406160046 | K49: 面试缺考
A50: 47 | B50: 王梦林 | C50: 女 | D50: 金沙县水利水电工程技术服务中心 | E50: 财务人员 | F50: 001301 | G50: 170.00 | H50: 2406160047 | I50: 75.20 | J50: =(G50/3)*0.6+I50*0.4 -> 64.08
A51: 48 | B51: 王帅 | C51: 男 | D51: 金沙县水利水电工程技术服务中心 | E51: 财务人员 | F51: 001301 | G51: 160.50 | H51: 2406160048 | I51: 73.20 | J51: 61.38
A52: 49 | B52: 郭青 | C52: 女 | D52: 金沙县水利水电工程技术服务中心 | E52: 财务人员 | F52: 001301 | G52: 156.00 | H52: 2406160049 | I52: 73.60 | J52: 60.64
A53: 50 | B53: 刘学然 | C53: 男 | D53: 金沙县水利水电工程技术服务中心 | E53: 工作人员 | F53: 001302 | G53: 184.00 | H53: 2406160050 | I53: 81.40 | J53: 69.36
A54: 51 | B54: 翁子灿 | C54: 男 | D54: 金沙县水利水电工程技术服务中心 | E54: 工作人员 | F54: 001302 | G54: 175.50 | H54: 2406160052 | I54: 72.40 | J54: 64.06
A55: 52 | B55: 胡楷 | C55: 男 | D55: 金沙县水利水电工程技术服务中心 | E55: 工作人员 | F55: 001302 | G55: 176.50 | H55: 2406160051 | I55: 66.40 | J55: 61.86
A56: 53 | B56: 陈雯 | C56: 女 | D56: 金沙县城乡供排水管理中心 | E56: 工作人员 | F56: 001401 | G56: 201.00 | H56: 2406160053 | I56: 75.04 | J56: 70.22
A57: 54 | B57: 高廷颖 | C57: 女 | D57: 金沙县城乡供排水管理中心 | E57: 工作人员 | F57: 001401 | G57: 199.50 | H57: 2406160054 | I57: 75.24 | J57: 70.00
A58: 55 | B58: 张玲玲 | C58: 女 | D58: 金沙县城乡供排水管理中心 | E58: 工作人员 | F58: 001401 | G58: 195.00 | H58: 2406160055 | I58: 77.40 | J58: 69.96
A59: 56 | B59: 邱银 | C59: 男 | D59: 金沙县河湖保护和水旱灾害防御中心 | E59: 工作人员 | F59: 001501 | G59: 173.00 | H59: 2406160057 | I59: 80.40 | J59: 66.76
A60: 57 | B60: 肖强 | C60: 男 | D60: 金沙县河湖保护和水旱灾害防御中心 | E60: 工作人员 | F60: 001501 | G60: 195.00 | H60: 2406160056 | I60: 68.10 | J60: 66.24
A61: 58 | B61: 欧文健 | C61: 男 | D61: 金沙县河湖保护和水旱灾害防御中心 | E61: 工作人员 | F61: 001501 | G61: 169.50 | H61: 2406160061 | I61: 79.20 | J61: 65.58
A62: 59 | B62: 王迪 | C62: 女 | D62: 金沙县河湖保护和水旱灾害防御中心 | E62: 工作人员 | F62: 001501 | G62: 171.00 | H62: 2406160060 | I62: 78.20 | J62: 65.48
A63: 60 | B63: 陈雪 | C63: 女 | D63: 金沙县河湖保护和水旱灾害防御中心 | E63: 工作人员 | F63: 001501 | G63: 171.00 | H63: 2406160059 | I63: 78.20 | J63: 65.48
A64: 61 | B64: 傅梦婷 | C64: 女 | D64: 金沙县河湖保护和水旱灾害防御中心 | E64: 工作人员 | F64: 001501 | G64: 172.50 | H64: 2406160058 | I64: 76.40 | J64: 65.06
A65: 62 | B65: 杨农龙 | C65: 男 | D65: 金沙县旅游发展服务中心 | E65: 工作人员 | F65: 001601 | G65: 212.50 | H65: 2406160062 | I65: 76.40 | J65: 73.06
A66: 63 | B66: 刘薇 | C66: 女 | D66: 金沙县旅游发展服务中心 | E66: 工作人员 | F66: 001601 | G66: 197.00 | H66: 2406160064 | I66: 79.60 | J66: 71.24
A67: 64 | B67: 李琳 | C67: 女 | D67: 金沙县旅游发展服务中心 | E67: 工作人员 | F67: 001601 | G67: 200.00 | H67: 2406160063 | I67: 66.80 | J67: 66.72
A68: 65 | B68: 汪妍 | C68: 女 | D68: 金沙县文化馆 | E68: 办公室工作人员 | F68: 001701 | G68: 205.00 | H68: 2406160065 | I68: 86.64 | J68: 75.66
A69: 66 | B69: 王怡騑 | C69: 男 | D69: 金沙县文化馆 | E69: 办公室工作人员 | F69: 001701 | G69: 198.00 | H69: 2406160066 | I69: 81.00 | J69: 72.00
A70: 67 | B70: 戴腾 | C70: 男 | D70: 金沙县文化馆 | E70: 办公室工作人员 | F70: 001701 | G70: 177.00 | H70: 2406160067 | I70: 77.80 | J70: 66.52
A71: 68 | B71: 唐玉蝶 | C71: 女 | D71: 金沙县文化馆 | E71: 工作人员 | F71: 001702 | G71: 175.00 | H71: 2406160068 | I71: 86.00 | J71: 69.40
A72: 69 | B72: 杨鑫梅 | C72: 女 | D72: 金沙县文化馆 | E72: 工作人员 | F72: 001702 | G72: 162.00 | H72: 2406160069 | I72: 88.20 | J72: 67.68
A73: 70 | B73: 韩颖 | C73: 女 | D73: 金沙县市场监督管理信息中心 | E73: 工作人员 | F73: 001801 | G73: 197.00 | H73: 2406160071 | I73: 86.20 | J73: 73.88
A74: 71 | B74: 章仕莹 | C74: 女 | D74: 金沙县市场监督管理信息中心 | E74: 工作人员 | F74: 001801 | G74: 199.50 | H74: 2406160070 | I74: 70.80 | J74: 68.22
A75: 72 | B75: 李兵 | C75: 男 | D75: 金沙县市场监督管理信息中心 | E75: 工作人员 | F75: 001801 | G75: 186.50 | H75: 2406160072 | I75: 76.20 | J75: 67.78
A76: 73 | B76: 周炫 | C76: 女 | D76: 金沙县市场监督管理信息中心 | E76: 工作人员 | F76: 001801 | G76: 182.50 | H76: 2406160075 | I76: 77.80 | J76: 67.62
A77: 74 | B77: 汪瑞 | C77: 男 | D77: 金沙县市场监督管理信息中心 | E77: 工作人员 | F77: 001801 | G77: 183.00 | H77: 2406160073 | I77: 76.80 | J77: 67.32
A78: 75 | B78: 杨恩 | C78: 女 | D78: 金沙县市场监督管理信息中心 | E78: 工作人员 | F78: 001801 | G78: 182.50 | H78: 2406160074 | I78: 76.16 | J78: 66.96
A79: 76 | B79: 余神合 | C79: 男 | D79: 金沙县质量技术监督检测所 | E79: 工作人员 | F79: 001901 | G79: 213.50 | H79: 2406160076 | I79: 74.60 | J79: 72.54
A80: 77 | B80: 卢洪林 | C80: 男 | D80: 金沙县质量技术监督检测所 | E80: 工作人员 | F80: 001901 | G80: 190.50 | H80: 2406160077 | I80: 78.30 | J80: 69.42
A81: 78 | B81: 何世秀 | C81: 女 | D81: 金沙县质量技术监督检测所 | E81: 工作人员 | F81: 001901 | G81: 181.00 | H81: 2406160078 | I81: 75.10 | J81: 66.24
A82: 79 | B82: 陈雪 | C82: 女 | D82: 金沙县药品医疗器械不良反应监测中心 | E82: 工作人员 | F82: 002001 | G82: 198.50 | H82: 2406160079 | I82: 81.70 | J82: 72.38
A83: 80 | B83: 吴远俊 | C83: 女 | D83: 金沙县药品医疗器械不良反应监测中心 | E83: 工作人员 | F83: 002001 | G83: 191.50 | H83: 2406160080 | I83: 81.38 | J83: 70.85
A84: 81 | B84: 李忠先 | C84: 女 | D84: 金沙县药品医疗器械不良反应监测中心 | E84: 工作人员 | F84: 002001 | G84: 180.50 | H84: 2406160081 | I84: 61.80 | J84: 60.82
A85: 82 | B85: 李芳 | C85: 女 | D85: 毕节市金黔食品检验检测分中心 | E85: 工作人员 | F85: 002101 | G85: 174.50 | H85: 2406160082 | I85: 73.60 | J85: 64.34
A86: 83 | B86: 陈业 | C86: 女 | D86: 毕节市金黔食品检验检测分中心 | E86: 工作人员 | F86: 002101 | G86: 170.50 | H86: 2406160084 | I86: 75.60 | J86: 64.34
A87: 84 | B87: 卓周俊颖 | C87: 女 | D87: 毕节市金黔食品检验检测分中心 | E87: 工作人员 | F87: 002101 | G87: 174.00 | H87: 2406160083 | I87: 67.80 | J87: 61.92
A88: 85 | B88: 陈明明 | C88: 女 | D88: 金沙县医疗保障中心 | E88: 财务人员 | F88: 002201 | G88: 188.50 | H88: 2406160085 | I88: 76.00 | J88: 68.10
A89: 86 | B89: 张月 | C89: 女 | D89: 金沙县医疗保障中心 | E89: 财务人员 | F89: 002201 | G89: 176.00 | H89: 2406160087 | I89: 78.40 | J89: 66.56
A90: 87 | B90: 王家颖 | C90: 女 | D90: 金沙县医疗保障中心 | E90: 财务人员 | F90: 002201 | G90: 178.50 | H90: 2406160086 | I90: 76.80 | J90: 66.42
A91: 88 | B91: 罗銮 | C91: 男 | D91: 金沙县市容环境卫生服务中心 | E91: 工作人员 | F91: 002301 | G91: 204.50 | H91: 2406160090 | I91: 85.20 | J91: 74.98
A92: 89 | B92: 敖廷艳 | C92: 女 | D92: 金沙县市容环境卫生服务中心 | E92: 工作人员 | F92: 002301 | G92: 211.50 | H92: 2406160088 | I92: 80.40 | J92: 74.46
A93: 90 | B93: 李响响 | C93: 男 | D93: 金沙县市容环境卫生服务中心 | E93: 工作人员 | F93: 002301 | G93: 210.50 | H93: 2406160089 | I93: 79.40 | J93: 73.86
A94: 91 | B94: 汪雪燚 | C94: 女 | D94: 金沙县园林绿化中心 | E94: 工作人员 | F94: 002401 | G94: 227.00 | H94: 2406160091 | I94: 79.60 | J94: 77.24
A95: 92 | B95: 王力 | C95: 男 | D95: 金沙县园林绿化中心 | E95: 工作人员 | F95: 002401 | G95: 200.00 | H95: 2406160092 | I95: 79.80 | J95: 71.92
A96: 93 | B96: 何美 | C96: 女 | D96: 金沙县园林绿化中心 | E96: 工作人员 | F96: 002401 | G96: 196.00 | H96: 2406160093 | K96: 面试缺考
A97: 94 | B97: 代涛 | C97: 男 | D97: 金沙县园林绿化中心 | E97: 工作人员 | F97: 002402 | G97: 180.50 | H97: 2406160094 | I97: 75.60 | J97: =(G97/3)*0.6+I97*0.4 -> 66.34
A98: 95 | B98: 邓正杰 | C98: 男 | D98: 金沙县园林绿化中心 | E98: 工作人员 | F98: 002402 | G98: 177.50 | H98: 2406160095 | I98: 71.40 | J98: 64.06
A99: 96 | B99: 何光能 | C99: 男 | D99: 金沙县园林绿化中心 | E99: 工作人员 | F99: 002402 | G99: 173.00 | H99: 2406160096 | I99: 68.60 | J99: 62.04
A100: 97 | B100: 吴杰 | C100: 男 | D100: 金沙县煤矿安全服务中心 | E100: 工作人员 | F100: 002501 | G100: 193.50 | H100: 2406160097 | I100: 78.80 | J100: 70.22
A101: 98 | B101: 曾凡诚 | C101: 男 | D101: 金沙县煤矿安全服务中心 | E101: 工作人员 | F101: 002501 | G101: 192.50 | H101: 2406160098 | I101: 77.00 | J101: 69.30
A102: 99 | B102: 王果 | C102: 男 | D102: 金沙县煤矿安全服务中心 | E102: 工作人员 | F102: 002501 | G102: 186.00 | H102: 2406160102 | I102: 78.00 | J102: 68.40
A103: 100 | B103: 白友国 | C103: 男 | D103: 金沙县煤矿安全服务中心 | E103: 工作人员 | F103: 002501 | G103: 186.50 | H103: 2406160101 | I103: 77.20 | J103: 68.18
A104: 101 | B104: 罗涛 | C104: 男 | D104: 金沙县煤矿安全服务中心 | E104: 工作人员 | F104: 002501 | G104: 185.50 | H104: 2406160104 | I104: 77.60 | J104: 68.14
A105: 102 | B105: 蒙文旭 | C105: 男 | D105: 金沙县煤矿安全服务中心 | E105: 工作人员 | F105: 002501 | G105: 189.50 | H105: 2406160099 | I105: 73.60 | J105: 67.34
A106: 103 | B106: 吴加勇 | C106: 男 | D106: 金沙县煤矿安全服务中心 | E106: 工作人员 | F106: 002501 | G106: 182.00 | H106: 2406160105 | I106: 75.20 | J106: 66.48
A107: 104 | B107: 王荣桦 | C107: 男 | D107: 金沙县煤矿安全服务中心 | E107: 工作人员 | F107: 002501 | G107: 186.50 | H107: 2406160100 | I107: 72.20 | J107: 66.18
A108: 105 | B108: 刘琴 | C108: 女 | D108: 金沙县煤矿安全服务中心 | E108: 工作人员 | F108: 002501 | G108: 186.00 | H108: 2406160103 | I108: 71.80 | J108: 65.92
A109: 106 | B109: 惠兴势 | C109: 男 | D109: 金沙县煤炭产业发展中心 | E109: 工作人员 | F109: 002601 | G109: 206.00 | H109: 2406160106 | I109: 74.60 | J109: 71.04
A110: 107 | B110: 文伦宾 | C110: 男 | D110: 金沙县煤炭产业发展中心 | E110: 工作人员 | F110: 002601 | G110: 190.50 | H110: 2406160107 | I110: 76.20 | J110: 68.58
A111: 108 | B111: 詹滔 | C111: 男 | D111: 金沙县煤炭产业发展中心 | E111: 工作人员 | F111: 002601 | G111: 184.00 | H111: 2406160109 | I111: 73.00 | J111: 66.00
A112: 109 | B112: 田勇 | C112: 男 | D112: 金沙县煤炭产业发展中心 | E112: 工作人员 | F112: 002601 | G112: 176.50 | H112: 2406160110 | I112: 70.40 | J112: 63.46
A113: 110 | B113: 祝斌 | C113: 男 | D113: 金沙县煤炭产业发展中心 | E113: 工作人员 | F113: 002601 | G113: 175.00 | H113: 2406160111 | I113: 69.00 | J113: 62.60
A114: 111 | B114: 余坤 | C114: 男 | D114: 金沙县煤炭产业发展中心 | E114: 工作人员 | F114: 002601 | G114: 158.00 | H114: 2406160113 | I114: 76.00 | J114: 62.00
A115: 112 | B115: 冯明海 | C115: 男 | D115: 金沙县煤炭产业发展中心 | E115: 工作人员 | F115: 002601 | G115: 164.00 | H115: 2406160112 | I115: 69.80 | J115: 60.72
A116: 113 | B116: 杨先国 | C116: 男 | D116: 金沙县煤炭产业发展中心 | E116: 工作人员 | F116: 002601 | G116: 157.50 | H116: 2406160114 | I116: 68.60 | J116: 58.94
A117: 114 | B117: 蔡渊 | C117: 男 | D117: 金沙县煤炭产业发展中心 | E117: 工作人员 | F117: 002601 | G117: 190.00 | H117: 2406160108 | K117: 面试缺考
A118: 115 | B118: 陈前 | C118: 男 | D118: 金沙县矿产品税费监控中心 | E118: 工作人员 | F118: 002701 | G118: 179.50 | H118: 2406160115 | I118: 78.20 | J118: =(G118/3)*0.6+I118*0.4 -> 67.18
A119: 116 | B119: 张清清 | C119: 女 | D119: 金沙县矿产品税费监控中心 | E119: 工作人员 | F119: 002701 | G119: 175.00 | H119: 2406160116 | I119: 78.80 | J119: =(G119/3)*0.6+I119*0.4 -> 66.52
A120: 117 | B120: 刘璐 | C120: 女 | D120: 金沙县矿产品税费监控中心 | E120: 工作人员 | F120: 002701 | G120: 164.50 | H120: 2406160117 | I120: 77.60 | J120: =(G120/3)*0.6+I120*0.4 -> 63.94
A121: 118 | B121: 龚克煜 | C121: 男 | D121: 金沙县矿产品税费监控中心 | E121: 工作人员 | F121: 002701 | G121: 162.00 | H121: 2406160118 | I121: 75.40 | J121: =(G121/3)*0.6+I121*0.4 -> 62.56
A122: 119 | B122: 阳情 | C122: 女 | D122: 金沙县矿产品税费监控中心 | E122: 工作人员 | F122: 002701 | G122: 156.50 | H122: 2406160119 | I122: 70.80 | J122: =(G122/3)*0.6+I122*0.4 -> 59.62
A123: 120 | B123: 雷洪进 | C123: 男 | D123: 金沙县矿产品税费监控中心 | E123: 工作人员 | F123: 002701 | G123: 150.50 | H123: 2406160120 | K123: 面试缺考
A124: 121 | B124: 卓越 | C124: 男 | D124: 金沙县矿产品税费监控中心 | E124: 财务人员 | F124: 002702 | G124: 194.00 | H124: 2406160122 | I124: 81.80 | J124: =(G124/3)*0.6+I124*0.4 -> 71.52
A125: 122 | B125: 聂珊 | C125: 女 | D125: 金沙县矿产品税费监控中心 | E125: 财务人员 | F125: 002702 | G125: 186.50 | H125: 2406160126 | I125: 84.60 | J125: 71.14
A126: 123 | B126: 韩祎婷 | C126: 女 | D126: 金沙县矿产品税费监控中心 | E126: 财务人员 | F126: 002702 | G126: 197.50 | H126: 2406160121 | I126: 78.80 | J126: 71.02
A127: 124 | B127: 田玉珍 | C127: 女 | D127: 金沙县矿产品税费监控中心 | E127: 财务人员 | F127: 002702 | G127: 191.50 | H127: 2406160123 | I127: 80.70 | J127: 70.58
A128: 125 | B128: 陈贵梅 | C128: 女 | D128: 金沙县矿产品税费监控中心 | E128: 财务人员 | F128: 002702 | G128: 186.50 | H128: 2406160125 | I128: 81.50 | J128: 69.90
A129: 126 | B129: 胡瑶 | C129: 女 | D129: 金沙县矿产品税费监控中心 | E129: 财务人员 | F129: 002702 | G129: 188.50 | H129: 2406160124 | I129: 76.70 | J129: 68.38
A130: 127 | B130: 刘炳南 | C130: 男 | D130: 金沙县鼓场街道科技文化服务中心 | E130: 工作人员 | F130: 002801 | G130: 210.50 | H130: 2406160127 | I130: 83.10 | J130: 75.34
A131: 128 | B131: 郑晨晨 | C131: 女 | D131: 金沙县鼓场街道科技文化服务中心 | E131: 工作人员 | F131: 002801 | G131: 169.50 | H131: 2406160129 | I131: 74.60 | J131: 63.74
A132: 129 | B132: 李点点 | C132: 女 | D132: 金沙县鼓场街道科技文化服务中心 | E132: 工作人员 | F132: 002801 | G132: 173.50 | H132: 2406160128 | I132: 71.30 | J132: 63.22
A133: 130 | B133: 王佳鑫 | C133: 男 | D133: 金沙县鼓场街道科技文化服务中心 | E133: 工作人员 | F133: 002801 | G133: 169.50 | H133: 2406160130 | K133: 面试缺考
A134: 131 | B134: 曾品锜 | C134: 男 | D134: 金沙县西洛街道财政所 | E134: 财务人员 | F134: 002901 | G134: 222.00 | H134: 2406160131 | I134: 80.40 | J134: =(G134/3)*0.6+I134*0.4 -> 76.56
A135: 132 | B135: 熊宇 | C135: 男 | D135: 金沙县西洛街道财政所 | E135: 财务人员 | F135: 002901 | G135: 195.00 | H135: 2406160132 | I135: 85.20 | J135: 73.08
A136: 133 | B136: 王娇娇 | C136: 女 | D136: 金沙县西洛街道财政所 | E136: 财务人员 | F136: 002901 | G136: 193.00 | H136: 2406160133 | I136: 84.40 | J136: 72.36
A137: 134 | B137: 王俊 | C137: 女 | D137: 金沙县西洛街道财政所 | E137: 财务人员 | F137: 002901 | G137: 187.00 | H137: 2406160135 | I137: 84.00 | J137: 71.00
A138: 135 | B138: 李轶 | C138: 男 | D138: 金沙县西洛街道财政所 | E138: 财务人员 | F138: 002901 | G138: 193.00 | H138: 2406160134 | I138: 78.00 | J138: 69.80
A139: 136 | B139: 何倩 | C139: 女 | D139: 金沙县西洛街道财政所 | E139: 财务人员 | F139: 002901 | G139: 183.00 | H139: 2406160136 | I139: 70.40 | J139: 64.76
A140: 137 | B140: 高圆圆 | C140: 女 | D140: 金沙县西洛街道农林环保服务中心 | E140: 工作人员 | F140: 003001 | G140: 184.00 | H140: 2406160138 | I140: 81.50 | J140: 69.40
A141: 138 | B141: 向逸宇 | C141: 男 | D141: 金沙县西洛街道农林环保服务中心 | E141: 工作人员 | F141: 003001 | G141: 185.00 | H141: 2406160137 | I141: 78.60 | J141: 68.44
A142: 139 | B142: 蒋颖 | C142: 女 | D142: 金沙县西洛街道农林环保服务中心 | E142: 工作人员 | F142: 003001 | G142: 184.00 | H142: 2406160139 | I142: 75.80 | J142: 67.12
A143: 140 | B143: 徐颖 | C143: 女 | D143: 金沙县岩孔街道社会事务服务中心 | E143: 工作人员 | F143: 003101 | G143: 199.00 | H143: 2406160142 | I143: 84.10 | J143: 73.44
A144: 141 | B144: 张星月 | C144: 男 | D144: 金沙县岩孔街道社会事务服务中心 | E144: 工作人员 | F144: 003101 | G144: 199.50 | H144: 2406160140 | I144: 80.40 | J144: 72.06
A145: 142 | B145: 李和艳 | C145: 女 | D145: 金沙县岩孔街道社会事务服务中心 | E145: 工作人员 | F145: 003101 | G145: 199.50 | H145: 2406160141 | I145: 75.80 | J145: 70.22
A146: 143 | B146: 牟泽莹 | C146: 女 | D146: 金沙县岩孔街道综治中心 | E146: 工作人员 | F146: 003201 | G146: 198.50 | H146: 2406160143 | I146: 79.40 | J146: 71.46
A147: 144 | B147: 丁宇星 | C147: 女 | D147: 金沙县岩孔街道综治中心 | E147: 工作人员 | F147: 003201 | G147: 191.50 | H147: 2406160145 | I147: 82.70 | J147: 71.38
A148: 145 | B148: 蔡旺 | C148: 女 | D148: 金沙县岩孔街道综治中心 | E148: 工作人员 | F148: 003201 | G148: 192.50 | H148: 2406160144 | I148: 78.00 | J148: 69.70
A149: 146 | B149: 李世贤 | C149: 女 | D149: 金沙县五龙街道农林环保服务中心 | E149: 工作人员 | F149: 003301 | G149: 180.50 | H149: 2406160146 | I149: 80.20 | J149: 68.18
A150: 147 | B150: 廖全政 | C150: 男 | D150: 金沙县五龙街道农林环保服务中心 | E150: 工作人员 | F150: 003301 | G150: 158.00 | H150: 2406160147 | I150: 79.00 | J150: 63.20
A151: 148 | B151: 江登欢 | C151: 女 | D151: 金沙县五龙街道农林环保服务中心 | E151: 工作人员 | F151: 003301 | G151: 152.50 | H151: 2406160149 | I151: 78.30 | J151: 61.82
A152: 149 | B152: 詹庆 | C152: 女 | D152: 金沙县五龙街道农林环保服务中心 | E152: 工作人员 | F152: 003301 | G152: 153.00 | H152: 2406160148 | I152: 75.70 | J152: 60.88
A153: 150 | B153: 罗定灿 | C153: 女 | D153: 金沙县五龙街道财政所 | E153: 财务人员 | F153: 003401 | G153: 186.50 | H153: 2406160150 | I153: 77.20 | J153: 68.18
A154: 151 | B154: 陈果 | C154: 男 | D154: 金沙县五龙街道财政所 | E154: 财务人员 | F154: 003401 | G154: 182.00 | H154: 2406160151 | I154: 77.90 | J154: 67.56
A155: 152 | B155: 罗先艳 | C155: 女 | D155: 金沙县五龙街道财政所 | E155: 财务人员 | F155: 003401 | G155: 180.00 | H155: 2406160152 | I155: 77.50 | J155: 67.00
A156: 153 | B156: 余支敏 | C156: 女 | D156: 金沙县民兴街道科技文化服务中心 | E156: 工作人员 | F156: 003501 | G156: 194.50 | H156: 2406160154 | I156: 84.10 | J156: 72.54
A157: 154 | B157: 熊子淋 | C157: 女 | D157: 金沙县民兴街道科技文化服务中心 | E157: 工作人员 | F157: 003501 | G157: 187.50 | H157: 2406160155 | I157: 85.70 | J157: 71.78
A158: 155 | B158: 罗永霞 | C158: 女 | D158: 金沙县民兴街道科技文化服务中心 | E158: 工作人员 | F158: 003501 | G158: 195.50 | H158: 2406160153 | I158: 81.20 | J158: 71.58
A159: 156 | B159: 熊清清 | C159: 女 | D159: 金沙县民兴街道党群服务中心 | E159: 工作人员 | F159: 003601 | G159: 204.00 | H159: 2406160157 | I159: 82.30 | J159: 73.72
A160: 157 | B160: 饶宇 | C160: 女 | D160: 金沙县民兴街道党群服务中心 | E160: 工作人员 | F160: 003601 | G160: 204.00 | H160: 2406160156 | I160: 82.10 | J160: 73.64
A161: 158 | B161: 王仪 | C161: 女 | D161: 金沙县民兴街道党群服务中心 | E161: 工作人员 | F161: 003601 | G161: 190.00 | H161: 2406160158 | I161: 84.20 | J161: 71.68
A162: 159 | B162: 花玉如 | C162: 女 | D162: 金沙县民兴街道应急服务中心 | E162: 工作人员 | F162: 003701 | G162: 216.00 | H162: 2406160159 | I162: 82.80 | J162: 76.32
A163: 160 | B163: 陈艳君 | C163: 女 | D163: 金沙县民兴街道应急服务中心 | E163: 工作人员 | F163: 003701 | G163: 199.50 | H163: 2406160160 | I163: 78.70 | J163: 71.38
A164: 161 | B164: 刘照鑫 | C164: 男 | D164: 金沙县民兴街道应急服务中心 | E164: 工作人员 | F164: 003701 | G164: 195.00 | H164: 2406160161 | I164: 57.50 | J164: 62.00
A165: 162 | B165: 曾金 | C165: 男 | D165: 金沙县桂花乡科技文化信息服务中心 | E165: 工作人员 | F165: 003801 | G165: 193.50 | H165: 2406160162 | I165: 84.20 | J165: 72.38
A166: 163 | B166: 白洁 | C166: 女 | D166: 金沙县桂花乡科技文化信息服务中心 | E166: 工作人员 | F166: 003801 | G166: 182.00 | H166: 2406160163 | I166: 81.40 | J166: 68.96
A167: 164 | B167: 陈君莹 | C167: 女 | D167: 金沙县桂花乡科技文化信息服务中心 | E167: 工作人员 | F167: 003801 | G167: 172.50 | H167: 2406160164 | I167: 79.40 | J167: 66.26
A168: 165 | B168: 李姗 | C168: 女 | D168: 金沙县桂花乡村镇规划建设站 | E168: 工作人员 | F168: 003901 | G168: 190.00 | H168: 2406160165 | I168: 79.60 | J168: 69.84
A169: 166 | B169: 刘萍 | C169: 女 | D169: 金沙县桂花乡村镇规划建设站 | E169: 工作人员 | F169: 003901 | G169: 175.50 | H169: 2406160167 | I169: 77.80 | J169: 66.22
A170: 167 | B170: 冯梦怡 | C170: 女 | D170: 金沙县桂花乡村镇规划建设站 | E170: 工作人员 | F170: 003901 | G170: 178.50 | H170: 2406160166 | K170: 面试缺考
A171: 168 | B171: 赵军 | C171: 男 | D171: 金沙县石场乡农业服务中心 | E171: 工作人员 | F171: 004001 | G171: 157.50 | H171: 2406160168 | I171: 76.00 | J171: =(G171/3)*0.6+I171*0.4 -> 61.90
A172: 169 | B172: 刘世娥 | C172: 女 | D172: 金沙县石场乡林业环保站 | E172: 工作人员 | F172: 004201 | G172: 164.00 | H172: 2406160169 | I172: 80.60 | J172: =(G172/3)*0.6+I172*0.4 -> 65.04
A173: 170 | B173: 成诚 | C173: 男 | D173: 金沙县石场乡林业环保站 | E173: 工作人员 | F173: 004201 | G173: 161.50 | H173: 2406160170 | I173: 75.60 | J173: =(G173/3)*0.6+I173*0.4 -> 62.54
A174: 171 | B174: 黄旭 | C174: 女 | D174: 金沙县石场乡林业环保站 | E174: 工作人员 | F174: 004201 | G174: 155.50 | H174: 2406160171 | K174: 面试缺考
A175: 172 | B175: 姚光福 | C175: 男 | D175: 金沙县石场乡安全生产监督管理站 | E175: 工作人员 | F175: 004301 | G175: 189.50 | H175: 2406160172 | I175: 76.60 | J175: =(G175/3)*0.6+I175*0.4 -> 68.54
A176: 173 | B176: 梁廷鑫 | C176: 男 | D176: 金沙县石场乡安全生产监督管理站 | E176: 工作人员 | F176: 004301 | G176: 176.00 | H176: 2406160173 | I176: 78.60 | J176: =(G176/3)*0.6+I176*0.4 -> 66.64
A177: 174 | B177: 李琨 | C177: 男 | D177: 金沙县石场乡安全生产监督管理站 | E177: 工作人员 | F177: 004301 | G177: 173.50 | H177: 2406160174 | I177: 73.80 | J177: =(G177/3)*0.6+I177*0.4 -> 64.22
A178: 175 | B178: 张训勇 | C178: 男 | D178: 金沙县财政局石场分局 | E178: 财务人员 | F178: 004401 | G178: 196.50 | H178: 2406160175 | I178: 79.20 | J178: =(G178/3)*0.6+I178*0.4 -> 70.98
A179: 176 | B179: 向沚阳 | C179: 男 | D179: 金沙县财政局石场分局 | E179: 财务人员 | F179: 004401 | G179: 189.50 | H179: 2406160176 | I179: 80.40 | J179: =(G179/3)*0.6+I179*0.4 -> 70.06
A180: 177 | B180: 雷晨 | C180: 女 | D180: 金沙县财政局石场分局 | E180: 财务人员 | F180: 004401 | G180: 174.00 | H180: 2406160177 | K180: 面试缺考
A181: 178 | B181: 顾德鹏 | C181: 男 | D181: 金沙县太平乡农业服务中心 | E181: 工作人员 | F181: 004501 | G181: 176.00 | H181: 2406160178 | I181: 75.80 | J181: =(G181/3)*0.6+I181*0.4 -> 65.52
A182: 179 | B182: 罗健 | C182: 男 | D182: 金沙县财政局马路分局 | E182: 财务人员 | F182: 004601 | G182: 196.00 | H182: 2406160179 | I182: 77.80 | J182: 70.32
A183: 180 | B183: 李波 | C183: 男 | D183: 金沙县财政局马路分局 | E183: 财务人员 | F183: 004601 | G183: 184.50 | H183: 2406160180 | I183: 72.00 | J183: 65.70
A184: 181 | B184: 赵丽 | C184: 女 | D184: 金沙县财政局马路分局 | E184: 财务人员 | F184: 004601 | G184: 168.50 | H184: 2406160181 | I184: 75.00 | J184: 63.70
A185: 182 | B185: 姚勋 | C185: 男 | D185: 金沙县新化乡安全生产监督管理站 | E185: 工作人员 | F185: 004701 | G185: 171.00 | H185: 2406160184 | I185: 78.80 | J185: 65.72
A186: 183 | B186: 杨西铭 | C186: 男 | D186: 金沙县新化乡安全生产监督管理站 | E186: 工作人员 | F186: 004701 | G186: 176.50 | H186: 2406160183 | I186: 70.00 | J186: 63.30
A187: 184 | B187: 严学静 | C187: 女 | D187: 金沙县新化乡安全生产监督管理站 | E187: 工作人员 | F187: 004701 | G187: 198.50 | H187: 2406160182 | K187: 面试缺考
A188: 185 | B188: 刘羽彤 | C188: 女 | D188: 金沙县新化乡林业环保站 | E188: 工作人员 | F188: 004801 | G188: 187.00 | H188: 2406160186 | I188: 78.20 | J188: =(G188/3)*0.6+I188*0.4 -> 68.68
A189: 186 | B189: 吴皓 | C189: 男 | D189: 金沙县新化乡林业环保站 | E189: 工作人员 | F189: 004801 | G189: 183.00 | H189: 2406160187 | I189: 77.20 | J189: =(G189/3)*0.6+I189*0.4 -> 67.48
A190: 187 | B190: 佟晓琳 | C190: 男 | D190: 金沙县新化乡林业环保站 | E190: 工作人员 | F190: 004801 | G190: 183.00 | H190: 2406160188 | I190: 75.40 | J190: =(G190/3)*0.6+I190*0.4 -> 66.76
A191: 188 | B191: 张跃风 | C191: 女 | D191: 金沙县新化乡林业环保站 | E191: 工作人员 | F191: 004801 | G191: 215.50 | H191: 2406160185 | K191: 面试缺考
A192: 189 | B192: 刘燕 | C192: 女 | D192: 金沙县新化乡农业服务中心 | E192: 工作人员 | F192: 004901 | G192: 191.00 | H192: 2406160189 | I192: 76.20 | J192: =(G192/3)*0.6+I192*0.4 -> 68.68
A193: 190 | B193: 熊琴 | C193: 女 | D193: 金沙县新化乡农业服务中心 | E193: 工作人员 | F193: 004901 | G193: 159.00 | H193: 2406160191 | I193: 79.40 | J193: 63.56
A194: 191 | B194: 詹娇 | C194: 女 | D194: 金沙县新化乡农业服务中心 | E194: 工作人员 | F194: 004901 | G194: 165.00 | H194: 2406160190 | I194: 73.00 | J194: 62.20
A195: 192 | B195: 吴秋媛 | C195: 女 | D195: 金沙县新化乡科技文化信息服务中心 | E195: 工作人员 | F195: 005001 | G195: 181.50 | H195: 2406160193 | I195: 84.40 | J195: 70.06
A196: 193 | B196: 樊磊 | C196: 男 | D196: 金沙县新化乡科技文化信息服务中心 | E196: 工作人员 | F196: 005001 | G196: 180.50 | H196: 2406160194 | I196: 83.40 | J196: 69.46
A197: 194 | B197: 马妮 | C197: 女 | D197: 金沙县新化乡科技文化信息服务中心 | E197: 工作人员 | F197: 005001 | G197: 185.50 | H197: 2406160192 | I197: 76.00 | J197: 67.50
A198: 195 | B198: 夏榕 | C198: 女 | D198: 金沙县财政局安洛分局 | E198: 财务人员 | F198: 005101 | G198: 188.00 | H198: 2406160196 | I198: 78.60 | J198: 69.04
A199: 196 | B199: 王凤 | C199: 女 | D199: 金沙县财政局安洛分局 | E199: 财务人员 | F199: 005101 | G199: 192.50 | H199: 2406160195 | I199: 74.20 | J199: 68.18
A200: 197 | B200: 陈鑫 | C200: 男 | D200: 金沙县财政局安洛分局 | E200: 财务人员 | F200: 005101 | G200: 185.50 | H200: 2406160198 | I200: 76.80 | J200: 67.82
... 195 more rows
